Cogmind - Beta 13 @@@ ROGUE MODE // 2024.04.01 @ 02:40:34 Player: KingDarrenLXIX Result: Destroyed by D-53 Grenadier with Mini Grenade Launcher Performance ------------- Evolutions (1) 500 Regions Visited (3) 600 Robots Destroyed (36) 180 Value Destroyed (1003) 1003 Prototype IDs (2) 40 Alien Tech Used (0) 0 Bonus (0) 0 TOTAL SCORE: 2323 Bonus ------- None Cogmind --------- Core Integrity 0/400 Matter 28/300 Energy 100/100 System Corruption 10% Temperature Cool (0) Movement Core (1350) Ox26 Location -9/Mines Parts ------- > --- POWER (1) -------- (None) > --- PROPULSION (3) --- (None) > --- UTILITY (3) ------ Huge Storage Unit > --- WEAPON (2) ------- (None) > --- INVENTORY (25) --- Ion Engine Improved Ion Engine Light Treads Heat Sink Large Storage Unit Small Battery (100) Terrain Scanner Advanced Targeting Computer Advanced Targeting Computer Advanced Targeting Computer Recoil Stabilizer Recoil Stabilizer Recoil Stabilizer Recoil Stabilizer Power Shielding Hardened Light Armor Plating High-powered Tractor Beam Heavy Assault Rifle Shotgun Rocket Launcher Improved Grenade Launcher Improved Grenade Launcher Improved Grenade Launcher Peak State ------------ > --- POWER ------------ Light Ion Engine > --- PROPULSION ------- Light Treads Light Treads Light Treads > --- UTILITY ---------- Huge Storage Unit Visual Processing Unit Advanced Targeting Computer > --- WEAPON ----------- Improved Grenade Launcher Improved Grenade Launcher > --- INVENTORY -------- Ion Engine Improved Ion Engine Light Treads Heat Sink Large Storage Unit Small Battery Terrain Scanner Advanced Targeting Computer Advanced Targeting Computer Advanced Targeting Computer Recoil Stabilizer Recoil Stabilizer Recoil Stabilizer Recoil Stabilizer Power Shielding Hardened Light Armor Plating High-powered Tractor Beam Medium Laser Heavy Assault Rifle Shotgun Rocket Launcher Improved Grenade Launcher Improved Grenade Launcher [Rating: 20] Favorites ----------- Power Ion Engine Engine Ion Engine Propulsion Light Treads Treads Light Treads Leg Aluminum Leg Wheel Wheel Utility Visual Processing Unit Device Sensor Array Storage Huge Storage Unit Processor Visual Processing Unit Weapon Small Laser Energy Gun Small Laser Ballistic Gun Light Assault Rifle Launcher Improved Grenade Launcher Special Weapon Mining Laser Build | -11 -10 -9 -9 ------- Run | Yrd Mat Mat Min Slots Evolved 2 | . . 2 . Power . | . . . . Propulsion 1 | . . 1 . Utility 1 | . . 1 . Weapon . | . . . . Parts Attached 41 | 5 22 12 2 Power 6 | 1 3 2 . Engine 6 | 1 3 2 . Core . | . . . . Reactor . | . . . . Propulsion 11 | 2 7 2 . Treads 4 | . 2 2 . Leg 5 | . 5 . . Wheel 2 | 2 . . . Hover . | . . . . Flight . | . . . . Utility 7 | . 5 1 1 Device 1 | . . 1 . Storage 4 | . 4 . . Processor 2 | . 1 . 1 Hackware . | . . . . Protection . | . . . . Artifact . | . . . . Weapon 17 | 2 7 7 1 Energy Gun 7 | . 3 3 1 Energy Cannon . | . . . . Ballistic Gun 6 | 2 2 2 . Ballistic Cannon . | . . . . Launcher 3 | . 1 2 . Special Weapon 1 | . 1 . . Impact Weapon . | . . . . Slashing Weapon . | . . . . Piercing Weapon . | . . . . Special Melee Weapon . | . . . . Unidentified Prototypes . | . . . . Parts Lost 12 | . . 4 8 Power 2 | . . 1 1 Propulsion 3 | . . . 3 Utility 3 | . . 1 2 Weapon 4 | . . 2 2 Highest Loss Streak 8 | . . 2 8 To Critical Strikes 1 | . . . 1 Average Slot Usage (%) 93 | . 96 92 80 Engine 12 | . 14 10 10 Treads 16 | . 2 29 26 Leg 11 | . 25 . . Device 4 | . . 9 . Storage 11 | . 12 11 11 Processor 11 | . 12 11 13 Energy Gun 12 | . 14 11 . Ballistic Gun 5 | . 8 3 . Launcher 4 | . 2 5 19 Special Weapon 1 | . 3 . . Naked Turns . | . . . . Heaviest Build 95 | 5 87 95 95 Greatest Support 60 | 20 40 60 60 Greatest Overweight (x) 27 | . 4 2 27 Average Overweight (x) . | . . 1 1 Largest Inventory Capacity 25 | 5 25 25 25 Average Capacity 17 | 5 12 25 25 Most Carried 25 | 5 14 25 24 Average Carried 12 | 3 6 19 23 Final Capacity 25 | 5 25 25 25 Final Carried 23 | 4 13 23 23 Class Distribution -------------------- 55% | Scavenger-Mutant 44% | Mutant Dominant Class ---------------- Mutant | -10/Materials Scavenger-Mutant | -9/Materials Scavenger-Mutant | -9/Mines Resources | -11 -10 -9 -9 ----------- Run | Yrd Mat Mat Min Matter Collected 743 | 256 217 222 48 Remotely . | . . . . Salvage Created 968 | 40 294 603 31 Parts 66 | 1 21 44 . Haulers Intercepted 1 | . 1 . . Recyclers Shooed 2 | . 1 1 . Parts Field Recycled . | . . . . Retrieved Matter . | . . . . Parts Self-Destructed . | . . . . Prevented . | . . . . Kills | -11 -10 -9 -9 ------- Run | Yrd Mat Mat Min Combat Hostiles Destroyed 33 | 1 9 14 9 Guns 11 | 1 5 5 . Cannons 2 | . 2 . . AOE 20 | . 2 9 9 Classes Destroyed 10 | 1 4 4 1 Worker 2 | . 1 1 . Builder 2 | . . 2 . Hauler 1 | . 1 . . Recycler 2 | . . 2 . Watcher 5 | . 3 2 . Swarmer 3 | . 3 . . Grunt 13 | 1 6 6 . Duelist 1 | . . 1 . Sentry 7 | . . 7 . Assembled 9 | . . . 9 Best Kill Streak 9 | 1 3 4 9 Combat Bots Only 9 | 1 2 4 9 Max Kills in Single Turn 4 | 1 2 2 4 Gunslinging . | . . . . Exploded 4 | . 1 2 4 Melee . | . . . . Uniques/NPCs Destroyed . | . . . . Combat | -11 -10 -9 -9 -------- Run | Yrd Mat Mat Min Hostile Shots Fired 189 | 4 68 79 38 Missed 52 | 1 19 25 7 Damage Taken 2044 | 34 516 753 741 Core 502 | . 98 151 253 Absorbed by Shields . | . . . . Core Remaining (%) 80 | 100 60 . . Volleys Fired 107 | 3 51 47 6 Largest 2 | 2 2 2 2 Hottest 150 | 40 150 90 86 Shots Fired 179 | 6 87 76 10 Gun 133 | 6 67 58 2 Cannon . | . . . . Launcher 32 | . 6 18 8 Special 14 | . 14 . . Kinetic 54 | 6 36 12 . Thermal 93 | . 45 46 2 Explosive 32 | . 6 18 8 Electromagnetic . | . . . . Robot Hit Streak 10 | 6 10 9 1 Robot Miss Streak 4 | . 4 3 1 Penetration Max . | . . . . Secondary Targets . | . . . . Shots Hit Robots 89 | 6 34 48 1 Core Hits 93 | 2 26 46 19 Critical Kills . | . . . . Critical Parts Destroyed . | . . . . Critical Strikes 2 | . 1 1 . Burn 2 | . 1 1 . Melee Attacks . | . . . . Impact . | . . . . Slashing . | . . . . Piercing . | . . . . Sneak Attacks . | . . . . Combat Hostiles . | . . . . Follow-up Attacks . | . . . . Damage Inflicted 3355 | 47 1000 1648 660 Guns 1009 | 47 410 539 13 Cannons . | . . . . Explosions 2298 | . 542 1109 647 Melee . | . . . . Ramming . | . . . . Kinetic 440 | 47 245 148 . Thermal 617 | . 213 391 13 Explosive 2159 | . 443 1069 647 Electromagnetic 139 | . 99 40 . Impact . | . . . . Slashing . | . . . . Piercing . | . . . . Highest Corruption 10 | . . . 10 Average Corruption 8 | . . . 8 Corruption Purged . | . . . . Corruption Blocked . | . . . . Overload Shots . | . . . . Overflow Damage 38 | . 20 17 1 Projectiles . | . . . . Explosions 38 | . 20 17 1 Melee . | . . . . Knockbacks . | . . . . Impact . | . . . . Kinetic . | . . . . Secondary . | . . . . Self-Inflicted Damage 93 | . . 5 88 Shots 3 | . . 1 2 Rammed . | . . . . Targets Rammed . | . . . . Kicked . | . . . . Crushed . | . . . . Highest Temperature 257 | 6 257 132 29 Average Temperature 57 | 6 71 40 9 Received Heat Transfer 547 | 18 204 285 40 Siege Activations . | . . . . Robots Corrupted . | . . . . Combat Hostiles . | . . . . Parts Fried . | . . . . Impact Corruptions . | . . . . Robots Melted . | . . . . Combat Hostiles . | . . . . Parts Melted 3 | . . 3 . Heat Transferred 1712 | . 655 1020 37 Parts Sabotaged . | . . . . Parts Stolen . | . . . . Parts Stripped . | . . . . Power Chain Reactions . | . . . . Alert | -11 -10 -9 -9 ------- Run | Yrd Mat Mat Min Peak Influence 324 | 20 214 324 151 Initial 126 | . 13 21 126 Average 89 | 11 103 94 127 Maximum Alert Level 1 | . 1 1 . Low Security (%) 90 | 100 79 97 100 Level 1 9 | . 20 2 . Level 2 . | . . . . Level 3 . | . . . . Level 4 . | . . . . Level 5 . | . . . . High Security . | . . . . Max Security . | . . . . Squads Dispatched 5 | . 3 2 . Investigation 2 | . 2 . . Extermination . | . . . . Reinforcement 3 | . 1 2 . Assault . | . . . . Garrison . | . . . . Intercept . | . . . . Searches Triggered . | . . . . Construction Impeded . | . . . . Haulers Reinforced . | . . . . Active Scanning Responses . | . . . . Cargo Convoy Interrupts . | . . . . Stealth | -11 -10 -9 -9 --------- Run | Yrd Mat Mat Min Distress Signals 3 | . . 3 . Communications Jammed . | . . . . Distress Signals . | . . . . Times Spotted 62 | 1 15 23 23 Peak Tracking Total 14 | 1 3 9 14 Tactical Retreats 2 | . 1 1 . Traps | -11 -10 -9 -9 ------- Run | Yrd Mat Mat Min Traps Triggered 3 | . 2 1 . Indirectly . | . . . . Trap Hack Attempts . | . . . . Triggered . | . . . . Disarmed . | . . . . Reprogrammed . | . . . . Reused . | . . . . Traps Extracted . | . . . . Installed . | . . . . Triggered . | . . . . Machines | -11 -10 -9 -9 ---------- Run | Yrd Mat Mat Min Machines Disabled 6 | . 3 3 . Max in Single Turn 2 | . 2 1 . Machines Repaired . | . . . . Machines Dismantled . | . . . . Machines Sabotaged . | . . . . Overloaded Fab Kills . | . . . . Hacking | -11 -10 -9 -9 --------- Run | Yrd Mat Mat Min Machines Accessed 7 | . 4 3 . Terminals 4 | . 2 2 . Fabricators . | . . . . Repair Stations . | . . . . Recycling Units 2 | . 2 . . Scanalyzers 1 | . . 1 . Garrison Access . | . . . . Total Hacks 19 | . 10 9 . Successful 13 | . 6 7 . Failed 6 | . 4 2 . Catastrophic . | . . . . Database Lockouts . | . . . . Manual . | . . . . Terminals 9 | . 5 4 . Fabricators . | . . . . Repair Stations . | . . . . Recycling Units 5 | . 5 . . Scanalyzers 5 | . . 5 . Garrison Access . | . . . . Terminal Hacks 4 | . 2 2 . Record 1 | . . 1 . Robot Analysis 1 | . . 1 . Prototype ID Bank 1 | . 1 . . Zone Layout 1 | . 1 . . Fabricator Hacks . | . . . . Repair Station Hacks . | . . . . Recycling Unit Hacks 4 | . 4 . . Recycle Component 1 | . 1 . . Report Inventory 1 | . 1 . . Retrieve Matter 1 | . 1 . . Retrieve Components 1 | . 1 . . Scanalyzer 5 | . . 5 . Insert Component 2 | . . 2 . Analyze 3 | . . 3 . Garrison Access Hacks . | . . . . Unauthorized Hacks . | . . . . Terminals . | . . . . Fabricators . | . . . . Repair Stations . | . . . . Recycling Units . | . . . . Scanalyzers . | . . . . Garrison Access . | . . . . Data Cores Recovered . | . . . . Used . | . . . . Hacking Detections 6 | . 3 3 . Full Trace Events . | . . . . Feedback Events . | . . . . Feedback Blocked . | . . . . Robot Schematics Acquired . | . . . . Robots Built . | . . . . Authchips . | . . . . Time . | . . . . Total Robot Build Rating . | . . . . Part Schematics Acquired 2 | . . 2 . Parts Built . | . . . . Authchips . | . . . . Time . | . . . . Total Part Build Rating . | . . . . Parts Repaired . | . . . . Time . | . . . . Parts Recycled 1 | . 1 . . Recycled Matter . | . . . . Retrieved Matter 58 | . 58 . . Retrieved Components 9 | . 9 . . Parts Scanalyzed 2 | . . 2 . Part Schematics Acquired 2 | . . 2 . Parts Damaged . | . . . . Bothacking | -11 -10 -9 -9 ------------ Run | Yrd Mat Mat Min Used RIF Installer . | . . . . Robots Hacked . | . . . . Non-combat . | . . . . Combat . | . . . . Robot Hacks Applied . | . . . . Relay Couplers Released . | . . . . Fabnet Peak Effective % . | . . . . Robots Rewired . | . . . . Allies Hacked . | . . . . Hacks Repelled . | . . . . Allies | -11 -10 -9 -9 -------- Run | Yrd Mat Mat Min Total Allies . | . . . . Largest Group . | . . . . Highest-Rated Group . | . . . . Highest-Rated Ally . | . . . . Total Orders . | . . . . Ally Attacks . | . . . . Total Damage . | . . . . Kills . | . . . . Allies Corrupted . | . . . . Allies Melted . | . . . . Intel | -11 -10 -9 -9 ------- Run | Yrd Mat Mat Min Robot Analysis Total 1 | . . 1 . Derelict Logs Recovered . | . . . . Drone Launches . | . . . . Drone Recoveries . | . . . . Exploration | -11 -10 -9 -9 ------------- Run | Yrd Mat Mat Min Turns Passed 2461 | 307 973 1061 120 Spaces Moved 1135 | 315 448 334 38 Core 39 | 38 . . 1 Treads 399 | . 28 334 37 Legs 414 | . 414 . . Wheels 283 | 277 6 . . Hover . | . . . . Flight . | . . . . Fastest Speed 50 | 50 80 240 240 Average Speed 172 | 76 164 263 274 Slowest Speed 1400 | 80 400 320 1400 Overloaded Moves . | . . . . Propulsion Burnouts . | . . . . Robots Hopped . | . . . . Cave-ins Triggered . | . . . . Exploration Rate (%) 28 | 13 58 30 12 Regions Visited 3 Branch Regions 1 Pre-discovered Areas . | . . . . Known Exits Taken . | . . . . Unknown Exits Taken 3 | 1 1 1 . Scrap Searched 1 | . . . 1 Spaces Dug 5 | . 5 . . Terrain Destroyed 174 | . 20 103 51 Melee . | . . . . Projectile 9 | . 9 . . AOE 165 | . 11 103 51 Terrain Rammed . | . . . . Walls Destroyed . | . . . . Machines Disabled . | . . . . Actions | -11 -10 -9 -9 --------- Run | Yrd Mat Mat Min Total 1446 | 376 579 444 47 Wait 77 | 45 16 16 . Move 1132 | 314 447 333 38 Hop . | . . . . Pick Up 61 | 9 25 26 1 Fast Attach . | . . . . Attach 28 | 5 15 7 1 Detach 5 | . 5 . . Swap 13 | . 7 5 1 Drop 23 | . 13 10 . Fire 107 | 3 51 47 6 Melee . | . . . . Ram . | . . . . Kick . | . . . . Crush . | . . . . Escape Stasis . | . . . . Rewire . | . . . . Trap . | . . . . Miscellaneous . | . . . . Route ------- -11/Scrapyard -10/Materials (discovered 2 exits: *Mat x2) -9/Materials (discovered 2 exits: [*Min x2]) -9/Mines History --------- Turn | Location | Event 2 | -11/Scrapyard | Met Revision 17 108 | -11/Scrapyard | Discovered new exit (range 8) 308 | -11/Scrapyard | Entered Materials 309 | -10/Materials | Build established: Mutant 906 | -10/Materials | Discovered new exit (range 18) 1142 | -10/Materials | Discovered new exit (range 16) 1281 | -10/Materials | Entered another Materials area 1281 | -9/Materials | Evolved 2 slots: Propulsion x1, Utility x1 1397 | -9/Materials | Build established: Scavenger-Mutant 2081 | -9/Materials | Discovered new exit (range 9) 2300 | -9/Materials | Discovered new exit (range 12) 2342 | -9/Materials | Entered Mines 2349 | -9/Mines | Received a Rocket Launcher from a helpful Derelict 2425 | -9/Mines | Assembled infested the area 2447 | -9/Mines | Core integrity fell below 50% 2450 | -9/Mines | System corruption reached 10% 2457 | -9/Mines | Core integrity fell below 20% 2462 | -9/Mines | Destroyed by D-53 Grenadier with Mini Grenade Launcher Last Messages --------------- as-85995 destroyed. Imp. Grenade Launcher destroyed. The unstable cave ceiling collapses. C-30 ARC bursts open, deploying its payload. D-53 Grenadier unfolds itself. Acquired 9 matter. Lgt. Ion Engine destroyed. as-06980 destroyed. as-65073 destroyed. as-22448 destroyed. as-62829 destroyed. as-59034 destroyed. as-57904 destroyed. as-77079 destroyed. as-23678 destroyed. The unstable cave ceiling collapses. Visual Processing Unit destroyed. D-53 Grenadier destroyed. The unstable cave ceiling collapses. [Achievement: First Step to Greatness] Map ----- +----------------------------------------------------+ | ?????????????????????????????????????????????????? | | ?????????????????????????????????????????????????? | | ?????????????????????????????????????????????????? | | ?????????????????????????????????????????????????? | | ?????????????????????????????????????????????????? | | ?????????????????????????????????????????????????? | | ?????????????????????????????????????????????????? | | ?????????????????????????????????????????????????? | | ???????????????????????????????#?????????????????? | | ??????????????????????????????? ?????????????????? | | ??????????????????????????????? ?????????????????? | | ??????????????????????????????? ?????????????????? | | ??????????????????????????????? ?????????????????? | | ??????????????????????????????? ?????????????????? | | ???????????????#??????????????? ?????????????????? | | ????????????###? ?????????????# #????????????????? | | ?????????? ## # ????????????# #????????????????? | | ????????? ???????????# #????????????????? | | ????????? a ??????????# #????????????????? | | ????????? ?##??????# #????????????????? | | ?????????# % # ## #####?# #????????????????? | | ?????????# % % # ### #????????????????? | | ??????????# a %% ## #????????????????? | | ??????????# ] # #????????????????? | | ???????????## d % #????????????????? | | ????????????# @! ###!#????????????????? | | ????????????### # ######???????????# | | ??????????????# ## #!| #??????????## | | ??????????????# ???# ####### #??????????# | | ??????????????#?????# # ##?????# ############ | | ????????????????????#########??????# | | ???????????????????????????????????############## | | ????????????????????????????????????????????????# | | ????????????????????????????????????????????????## | | ?????????????????????????????????????????????????# | | ?????????????????????????????????????????????????? | | ?????????????????????????????????????????????????? | | | | | | | | | | | | | | | | | | | | | | | | | | | +----------------------------------------------------+ Best States ------------- Heat Dissipation 28 Energy Generation 10 Energy Capacity 250 Matter Stores 300 Matter Capacity 400 Sight Range 18 Robot Scan Range 14 Terrain Scan Density 10 Evasion (%) 55 Targeting Accuracy 8 Recoil Reduction 3 Item Schematics ----------------- Hvy. Assault Rifle | -9/Materials | Scanalyzed Imp. Grenade Launcher | -9/Materials | Scanalyzed Robot Schematics ------------------ None Fabricated ------------ Nothing Alien Tech Used ----------------- None Achievements -------------- Crack Shot First Step to Greatness Let's See Who's Tougher Loot Pinata Oops System Compromised Uninvited Guest Challenges ------------ None Game ------ Seed DisruptorProjectionKatana Manual? 0 Play Time 01:17:50 Cumulative 1.2 hours Start 2024.04.01 @ 00:47:32 End 2024.04.01 @ 02:40:34 Sessions 1 Manual Loads 0 Difficulty Rogue Special Mode None Game No. 1 Rogue 1 Adventurer 0 Explorer 0 Win Type - Total 0 Types 0/0/0/0/0/0/0/0/0 Lore% 0 Gallery% 2 Achievement% 2 Wizard Run 0 Options --------- Layout 1 ASCII 0 Keyboard 0 Movement Mouse Keybinds 0 Fullscreen 2 Font 32/Smallcaps Map View 50x35 Zoom Use 0% Tactical HUD 0 Map Filters NONE Filters NONE Steam 0 RUN: 836adc9d-8cf7-47c6-8dc0-b7f633a6d606